Cogmind - Beta 14 @@@ ROGUE MODE // 2025.04.10 @ 00:24:52 Player: Occam Result: Self-destructed Performance ------------- Evolutions (3) 1500 Regions Visited (6) 1200 Robots Destroyed (116) 580 Value Destroyed (2583) 2583 Prototype IDs (20) 400 Alien Tech Used (0) 0 Bonus (102) 102 TOTAL SCORE: 6365 Bonus ------- High Alert Combat Kills 102 Cogmind --------- Core Integrity 545/700 Matter 300/300 Energy 100/100 System Corruption 0% Temperature Cool (0) Movement Flying (34) Location -7/Factory Parts ------- > --- POWER (1) -------- (None) > --- PROPULSION (2) --- Improved Flight Unit Improved VTOL Module > --- UTILITY (8) ------ Structural Scanner Hacking Suite Hacking Suite Hacking Suite Hacking Suite System Shield > --- WEAPON (2) ------- Powered Hammer > --- INVENTORY (5) ---- Improved Medium Armor Plating Improved Trap Extractor (0/6) Great Axe Peak State ------------ > --- POWER ------------ Light Ion Engine > --- PROPULSION ------- Improved Flight Unit Improved VTOL Module > --- UTILITY ---------- Improved Sensor Array Improved Medium Armor Plating Hacking Suite Hacking Suite Hacking Suite Hacking Suite Hacking Suite System Shield > --- WEAPON ----------- Assault Rifle Powered Hammer > --- INVENTORY -------- Structural Scanner ECM Suite Hardened Medium Armor Plating Improved Datajack Plasma Cutter [Rating: 39] Favorites ----------- Power Ion Engine Engine Ion Engine Propulsion Light Treads Treads Light Treads Leg Aluminum Leg Wheel Compact Wheel Flight Unit Improved VTOL Module Utility Huge Storage Unit Device Structural Scanner Storage Huge Storage Unit Processor Advanced Targeting Computer Hackware Hacking Suite Protection Light Armor Plating Weapon Particle Gun Energy Gun Particle Gun Ballistic Gun Assault Rifle Impact Weapon Maul Special Melee Weapon Datajack Build | -11 -10 -10 -10 -9 -8 -7 ------- Run | Yrd Mat Min Exi Min Mat Fac Slots Evolved 6 | . . . . . 4 2 Power . | . . . . . . . Propulsion . | . . . . . . . Utility 6 | . . . . . 4 2 Weapon . | . . . . . . . Parts Attached 122 | 1 26 2 1 7 74 11 Power 8 | . 3 . . 1 3 1 Engine 8 | . 3 . . 1 3 1 Core . | . . . . . . . Reactor . | . . . . . . . Propulsion 48 | . 11 1 . 2 33 1 Treads 24 | . 6 1 . 1 16 . Leg . | . . . . . . . Wheel 20 | . 5 . . 1 14 . Hover . | . . . . . . . Flight 4 | . . . . . 3 1 Utility 41 | 1 5 1 . 2 25 7 Device 20 | 1 3 1 . 2 10 3 Storage 4 | . 2 . . . 2 . Processor 3 | . . . . . 3 . Hackware 6 | . . . . . 4 2 Protection 8 | . . . . . 6 2 Artifact . | . . . . . . . Weapon 25 | . 7 . 1 2 13 2 Energy Gun 12 | . 4 . . 1 7 . Energy Cannon . | . . . . . . . Ballistic Gun 7 | . 3 . . 1 3 . Ballistic Cannon . | . . . . . . . Launcher . | . . . . . . . Special Weapon . | . . . . . . . Impact Weapon 3 | . . . . . 2 1 Slashing Weapon . | . . . . . . . Piercing Weapon . | . . . . . . . Special Melee Weapon 3 | . . . 1 . 1 1 Unidentified Prototypes 6 | . . . . . 6 . Parts Lost 20 | . 4 1 . 1 9 5 Power 3 | . 1 . . . 1 1 Propulsion 5 | . 1 1 . . 3 . Utility 8 | . 1 . . . 5 2 Weapon 4 | . 1 . . 1 . 2 Highest Loss Streak 5 | . 4 1 . 1 5 4 To Critical Strikes . | . . . . . . . Average Slot Usage (%) 98 | . 98 100 100 99 98 93 Engine 11 | . 14 14 14 14 9 6 Treads 11 | . 17 14 14 14 9 . Wheel 8 | . 9 14 14 13 8 . Flight 1 | . . . . . . 15 Device 18 | . 13 14 14 14 26 12 Storage 10 | . 14 14 14 14 9 . Processor 3 | . . . . . 9 . Hackware 5 | . . . . . . 43 Protection 2 | . . . . . 7 . Energy Gun 11 | . 14 14 14 19 11 . Ballistic Gun 8 | . 12 14 1 5 6 3 Special Melee Weapon 1 | . . . 12 2 . 2 Peak Build Rating 39 | 8 11 11 11 13 38 39 Average Rating 20 | 6 9 10 11 11 29 33 On Entrance 11 | 6 7 11 11 11 12 24 Naked Turns . | . . . . . . . Heaviest Build 106 | 14 91 91 91 92 106 17 Greatest Support 44 | 20 40 16 16 16 44 10 Greatest Overweight (x) 35 | . 5 5 5 5 35 1 Average Overweight (x) 2 | . 4 5 5 5 6 . Largest Inventory Capacity 25 | 8 25 25 25 25 25 15 Average Capacity 21 | 8 21 25 25 25 24 5 Most Carried 25 | 8 25 25 24 25 25 6 Average Carried 19 | 7 17 23 24 24 24 4 Final Capacity 25 | 8 25 25 25 25 15 5 Final Carried 24 | 7 24 24 24 24 6 3 Class Distribution -------------------- 67% | Scavenger-Mutant 18% | Mutant 9% | Wizard-Mutant 3% | Hacker-Mutant Dominant Class ---------------- Mutant | -10/Materials Scavenger-Mutant | -10/Mines Scavenger-Mutant | -10/Exiles Scavenger-Mutant | -9/Mines Scavenger-Mutant | -8/Materials Wizard-Mutant | -7/Factory Resources | -11 -10 -10 -10 -9 -8 -7 ----------- Run | Yrd Mat Min Exi Min Mat Fac Matter Collected 2223 | 216 593 45 . 110 1154 105 Remotely . | . . . . . . . Salvage Created 4174 | 140 1054 100 . 260 2095 525 Parts 240 | 13 70 6 . 15 126 10 Haulers Intercepted 6 | . . . . . 4 2 Recyclers Shooed 3 | . 2 . . . 1 . Parts Field Recycled . | . . . . . . . Retrieved Matter . | . . . . . . . Parts Self-Destructed . | . . . . . . . Prevented . | . . . . . . . Kills | -11 -10 -10 -10 -9 -8 -7 ------- Run | Yrd Mat Min Exi Min Mat Fac Combat Hostiles Destroyed 58 | . 18 2 . 4 31 3 Melee 3 | . . . . . . 3 Guns 55 | . 18 2 . 4 31 . Classes Destroyed 15 | 2 7 . . . 5 1 Worker 10 | . 1 . . 1 6 2 Builder 14 | . 3 1 . . 10 . Tunneler 6 | 3 . . . . 2 1 Hauler 6 | . . . . . 4 2 Recycler 8 | 1 3 . . 1 1 2 Mechanic 2 | . 1 . . . . 1 Operator 3 | . 2 . . . 1 . Watcher 9 | . 3 . . . 3 3 Swarmer 13 | . 5 . . . 6 2 Grunt 31 | . 13 2 . 4 12 . Brawler 1 | . . . . . 1 . Duelist 1 | . . . . . 1 . Sentry 8 | . . . . . 8 . Hunter 3 | . . . . . 3 . Programmer 1 | . . . . . . 1 Best Kill Streak 8 | 2 4 2 . 4 8 3 Combat Bots Only 7 | . 3 2 . 3 7 2 Max Kills in Single Turn 1 | 1 1 1 . 1 1 1 Gunslinging . | . . . . . . . Exploded . | . . . . . . . Melee 1 | . . . . . . 1 Uniques/NPCs Destroyed . | . . . . . . . Combat | -11 -10 -10 -10 -9 -8 -7 -------- Run | Yrd Mat Min Exi Min Mat Fac Hostile Shots Fired 343 | . 119 13 . 24 137 50 Missed 96 | . 33 2 . 7 36 18 Damage Taken 3342 | . 888 167 . 225 1596 466 Core 617 | . 152 56 . 18 236 155 Absorbed by Shields . | . . . . . . . Regen/Repaired (Parts) 81 | . 66 . . . 15 . Core Remaining (%) 55 | 100 . . . 9 57 . Volleys Fired 273 | 6 98 10 . 14 145 . Largest 2 | 2 2 2 . 2 2 . Hottest 130 | 70 85 85 . 130 130 . Shots Fired 542 | 12 194 20 . 28 288 . Gun 542 | 12 194 20 . 28 288 . Cannon . | . . . . . . . Launcher . | . . . . . . . Special . | . . . . . . . Kinetic 226 | 6 97 10 . 11 102 . Thermal 316 | 6 97 10 . 17 186 . Explosive . | . . . . . . . Electromagnetic . | . . . . . . . Robot Hit Streak 19 | 5 11 6 . 5 19 . Robot Miss Streak 5 | 1 4 2 . 2 5 . Penetration Max . | . . . . . . . Secondary Targets 3 | . . 1 . 2 . . Max Gunslinging Chain 1 | . . 1 . 1 . . Shots Hit Robots 383 | 8 120 15 4 18 194 24 Core Hits 185 | 5 58 5 . 11 101 5 Critical Kills 1 | . 1 . . . . . Critical Parts Destroyed 4 | . . . . . . 4 Critical Strikes 19 | . 3 . . . 12 4 Burn 14 | . 2 . . . 12 . Destroy 1 | . 1 . . . . . Smash 4 | . . . . . . 4 Melee Attacks 59 | . . . 4 . 1 54 Impact 53 | . . . . . 1 52 Slashing . | . . . . . . . Piercing . | . . . . . . . Sneak Attacks 14 | . . . 4 . . 10 Combat Hostiles . | . . . . . . . Follow-up Attacks . | . . . . . . . Damage Inflicted 6923 | 87 1423 208 . 282 3631 1292 Guns 5608 | 87 1423 208 . 282 3608 . Cannons . | . . . . . . . Explosions . | . . . . . . . Melee 1292 | . . . . . . 1292 Ramming 23 | . . . . . 23 . Kinetic 1863 | 24 616 83 . 134 1006 . Thermal 3745 | 63 807 125 . 148 2602 . Explosive . | . . . . . . . Electromagnetic . | . . . . . . . Impact 1292 | . . . . . . 1292 Slashing . | . . . . . . . Piercing . | . . . . . . . Highest Corruption 4 | . . . . . 4 . Average Corruption 4 | . . . . . 4 . Corruption Purged . | . . . . . . . Corruption Blocked . | . . . . . . . Effects 28 | . . . . . 28 . Message Errors 5 | . . . . . 5 . Matter Fused 5 | . . . . . 5 . Heat Flow Errors 2 | . . . . . 2 . Energy Discharges 4 | . . . . . 4 . Data Loss (minor) 5 | . . . . . 5 . Data Loss (major) 3 | . . . . . 3 . Alerts 2 | . . . . . 2 . Weapon Failures 2 | . . . . . 2 . Overload Shots . | . . . . . . . Overflow Damage 546 | . . . . . . 546 Projectiles . | . . . . . . . Explosions . | . . . . . . . Melee 546 | . . . . . . 546 Knockbacks 3 | . . . . . . 3 Impact 3 | . . . . . . 3 Kinetic . | . . . . . . . Secondary . | . . . . . . . Self-Inflicted Damage 23 | . . . . . 23 . Shots . | . . . . . . . Rammed . | . . . . . . . Targets Rammed . | . . . . . . . Kicked . | . . . . . . . Crushed . | . . . . . . . Highest Temperature 341 | 50 341 286 . 288 249 6 Average Temperature 56 | 22 64 125 . 116 34 6 Received Heat Transfer 1131 | . 333 114 . 150 495 39 Effects 1 | . . 1 . . . . Energy Bleed 1 | . . 1 . . . . Siege Activations . | . . . . . . . Robots Corrupted 7 | . . . . . . 7 Combat Hostiles . | . . . . . . . Parts Fried 10 | . . . . . . 10 Impact Corruptions 21 | . . . . . . 21 Robots Melted . | . . . . . . . Combat Hostiles . | . . . . . . . Parts Melted 12 | . 2 1 . . 9 . Heat Transferred 8585 | 185 2240 296 . 316 5548 . Parts Sabotaged . | . . . . . . . Parts Stolen . | . . . . . . . Parts Stripped . | . . . . . . . Power Chain Reactions . | . . . . . . . Alert | -11 -10 -10 -10 -9 -8 -7 ------- Run | Yrd Mat Min Exi Min Mat Fac Peak Influence 611 | 20 237 74 . 100 611 462 Initial 131 | . 13 24 . . 1 131 Average 184 | 10 121 40 . 17 265 322 Maximum Alert Level 2 | . 1 . . . 2 2 Low Security (%) 57 | 100 82 100 . 100 31 12 Level 1 32 | . 17 . . . 46 71 Level 2 10 | . . . . . 21 15 Level 3 . | . . . . . . . Level 4 . | . . . . . . . Level 5 . | . . . . . . . High Security . | . . . . . . . Max Security . | . . . . . . . Squads Dispatched 9 | . 4 . . . 3 2 Investigation 7 | . 2 . . . 3 2 Extermination . | . . . . . . . Reinforcement 2 | . 2 . . . . . Assault . | . . . . . . . Garrison . | . . . . . . . Intercept . | . . . . . . . Searches Triggered . | . . . . . . . Construction Impeded . | . . . . . . . Haulers Reinforced . | . . . . . . . Active Scanning Responses . | . . . . . . . Cargo Convoy Interrupts . | . . . . . . . Stealth | -11 -10 -10 -10 -9 -8 -7 --------- Run | Yrd Mat Min Exi Min Mat Fac Distress Signals 5 | . 3 . . . 2 . Communications Jammed . | . . . . . . . Distress Signals . | . . . . . . . Times Spotted 112 | . 34 2 . 4 49 23 Peak Tracking Total 7 | . 4 2 . 3 7 7 Tactical Retreats 11 | . 1 . . . 4 6 Traps | -11 -10 -10 -10 -9 -8 -7 ------- Run | Yrd Mat Min Exi Min Mat Fac Traps Triggered 6 | . 1 . . . 3 2 Indirectly . | . . . . . . . Trap Hack Attempts 3 | . . . . . 3 . Triggered . | . . . . . . . Disarmed . | . . . . . . . Reprogrammed 2 | . . . . . 2 . Reused . | . . . . . . . Traps Extracted . | . . . . . . . Installed . | . . . . . . . Triggered 1 | . . 1 . . . . Machines | -11 -10 -10 -10 -9 -8 -7 ---------- Run | Yrd Mat Min Exi Min Mat Fac Machines Disabled 2 | . . . . . 2 . Max in Single Turn 1 | . . . . . 1 . Garrison Access 1 | . . . . . . 1 Machines Repaired . | . . . . . . . Machines Dismantled . | . . . . . . . Machines Sabotaged . | . . . . . . . Overloaded Fab Kills . | . . . . . . . Hacking | -11 -10 -10 -10 -9 -8 -7 --------- Run | Yrd Mat Min Exi Min Mat Fac Machines Accessed 29 | . 7 . 1 . 11 10 Terminals 19 | . 6 . . . 9 4 Fabricators 2 | . . . . . . 2 Repair Stations 3 | . 1 . . . 1 1 Recycling Units 2 | . . . . . . 2 Scanalyzers 1 | . . . . . 1 . Garrison Access 1 | . . . . . . 1 Total Hacks 89 | . 23 . 1 . 34 31 Successful 57 | . 16 . 1 . 14 26 Failed 31 | . 7 . . . 19 5 Catastrophic 8 | . 1 . . . 7 . Database Lockouts 1 | . . . . . 1 . Manual 57 | . 16 . . . 22 19 Terminals 61 | . 17 . . . 29 15 Fabricators 7 | . . . . . . 7 Repair Stations 10 | . 6 . . . 2 2 Recycling Units 6 | . . . . . . 6 Scanalyzers 3 | . . . . . 3 . Garrison Access 1 | . . . . . . 1 Terminal Hacks 25 | . 8 . 1 . 9 7 Record 1 | . . . 1 . . . Part Schematic 6 | . 2 . . . 2 2 Robot Analysis 4 | . 3 . . . 1 . Branch Access Points 1 | . . . . . . 1 Machine Index 1 | . . . . . . 1 Terminal Index 3 | . 1 . . . 1 1 Alert Level 1 | . . . . . 1 . Unreport Threat 3 | . 1 . . . 2 . Locate Traps 1 | . . . . . . 1 Hauler Manifests 3 | . 1 . . . 1 1 Zone Layout 1 | . . . . . 1 . Fabricator Hacks 5 | . . . . . . 5 Network Status 1 | . . . . . . 1 Load Schematic 2 | . . . . . . 2 Build 2 | . . . . . . 2 Repair Station Hacks 9 | . 6 . . . 2 1 Scan Component 4 | . 3 . . . 1 . Repair 4 | . 3 . . . 1 . Refit 1 | . . . . . . 1 Recycling Unit Hacks 2 | . . . . . . 2 Report Inventory 2 | . . . . . . 2 Scanalyzer 1 | . . . . . 1 . Insert Component 1 | . . . . . 1 . Garrison Access Hacks 1 | . . . . . . 1 Seal Access 1 | . . . . . . 1 Unauthorized Hacks 14 | . 2 . . . 2 10 Terminals 9 | . 2 . . . 2 5 Assimilate 2 | . . . . . . 2 Botnet 7 | . 2 . . . 2 3 Fabricators 2 | . . . . . . 2 Prioritize 2 | . . . . . . 2 Repair Stations . | . . . . . . . Recycling Units 3 | . . . . . . 3 Reject 1 | . . . . . . 1 Mask 2 | . . . . . . 2 Scanalyzers . | . . . . . . . Garrison Access . | . . . . . . . Data Cores Recovered 1 | . . . . . 1 . Used . | . . . . . . . Hacking Detections 24 | . 6 . . . 9 9 Full Trace Events 7 | . 2 . . . 3 2 Feedback Events . | . . . . . . . Feedback Blocked . | . . . . . . . Robot Schematics Acquired . | . . . . . . . Robots Built . | . . . . . . . Authchips . | . . . . . . . Time . | . . . . . . . Total Robot Build Rating . | . . . . . . . Part Schematics Acquired 6 | . 2 . . . 2 2 Parts Built 3 | . . . . . . 3 Authchips . | . . . . . . . Time 57 | . . . . . . 57 Total Part Build Rating 11 | . . . . . . 11 Parts Repaired 4 | . 3 . . . 1 . Time 110 | . 84 . . . 26 . Parts Recycled . | . . . . . . . Recycled Matter . | . . . . . . . Retrieved Matter . | . . . . . . . Retrieved Components . | . . . . . . . Parts Scanalyzed 1 | . . . . . 1 . Part Schematics Acquired . | . . . . . . . Parts Damaged . | . . . . . . . Bothacking | -11 -10 -10 -10 -9 -8 -7 ------------ Run | Yrd Mat Min Exi Min Mat Fac Used RIF Installer . | . . . . . . . Robots Hacked 6 | . . . 4 . . 2 Non-combat 5 | . . . 3 . . 2 Combat 1 | . . . 1 . . . Robot Hacks Applied 6 | . . . 4 . . 2 parse_system 4 | . . . 4 . . . find_chute 1 | . . . . . . 1 find_recycling 1 | . . . . . . 1 Relay Couplers Released . | . . . . . . . Fabnet Peak Effective % . | . . . . . . . Robots Rewired . | . . . . . . . Allies Hacked . | . . . . . . . Hacks Repelled . | . . . . . . . Allies | -11 -10 -10 -10 -9 -8 -7 -------- Run | Yrd Mat Min Exi Min Mat Fac Total Allies 2 | . . . . . . 2 Largest Group 2 | . . . . . . 2 Highest-Rated Group 36 | . . . . . . 36 Highest-Rated Ally 26 | . . . . . . 26 Total Orders . | . . . . . . . Ally Attacks . | . . . . . . . Total Damage . | . . . . . . . Kills . | . . . . . . . Allies Corrupted . | . . . . . . . Allies Melted . | . . . . . . . Intel | -11 -10 -10 -10 -9 -8 -7 ------- Run | Yrd Mat Min Exi Min Mat Fac Robot Analysis Total 4 | . 3 . . . 1 . Derelict Logs Recovered 1 | . . . . 1 . . Drone Launches . | . . . . . . . Drone Recoveries . | . . . . . . . Exploration | -11 -10 -10 -10 -9 -8 -7 ------------- Run | Yrd Mat Min Exi Min Mat Fac Turns Passed 6496 | 71 1607 677 309 596 2417 819 Spaces Moved 3856 | 28 661 124 173 300 879 1691 Core 1 | . . . . . 1 . Treads 123 | . 118 . . . 5 . Legs 43 | 28 15 . . . . . Wheels 1998 | . 528 124 173 300 873 . Hover . | . . . . . . . Flight 1691 | . . . . . . 1691 Fastest Speed 34 | 120 120 175 175 175 110 34 Average Speed 117 | 120 171 175 175 175 196 34 Slowest Speed 1800 | 120 320 175 175 175 1800 104 Overloaded Moves . | . . . . . . . Propulsion Burnouts . | . . . . . . . Robots Hopped . | . . . . . . . Cave-ins Triggered . | . . . . . . . Exploration Rate (%) 56 | 3 98 29 58 72 91 41 Regions Visited 6 Branch Regions 3 Pre-discovered Areas 2 | . . . 1 1 . . Known Exits Taken 1 | . . . . . 1 . Unknown Exits Taken 5 | 1 1 1 1 1 . . Scrap Searched 1 | . . . . 1 . . Spaces Dug 23 | . . . . . 1 22 Terrain Destroyed 23 | . . . . . 1 22 Melee 23 | . . . . . 1 22 Projectile . | . . . . . . . AOE . | . . . . . . . Terrain Rammed 1 | . . . . . 1 . Walls Destroyed 1 | . . . . . 1 . Machines Disabled . | . . . . . . . Actions | -11 -10 -10 -10 -9 -8 -7 --------- Run | Yrd Mat Min Exi Min Mat Fac Total 5266 | 55 954 564 177 344 1333 1839 Wait 781 | 16 132 426 . 14 129 64 Move 3850 | 27 660 123 172 299 878 1691 Hop . | . . . . . . . Pick Up 67 | 3 22 2 . 5 30 5 Fast Attach 33 | 1 8 . . . 20 4 Attach 34 | . 7 1 . 1 23 2 Detach 27 | . 7 . . . 17 3 Swap 55 | . 11 1 1 6 31 5 Drop 83 | 2 9 1 . 5 55 11 Fire 273 | 6 98 10 . 14 145 . Melee 59 | . . . 4 . 1 54 Ram 1 | . . . . . 1 . Kick . | . . . . . . . Crush . | . . . . . . . Escape Stasis . | . . . . . . . Rewire . | . . . . . . . Trap 3 | . . . . . 3 . Miscellaneous . | . . . . . . . Route ------- -11/Scrapyard -10/Materials (discovered 5 exits: [*Mat x3] / [*Min] / [Sub]) -10/Mines (discovered 2 exits: *Exi / [*Sub]) -10/Exiles -9/Mines (discovered 2 exits: *Mat x2) -8/Materials (discovered 2 exits: *Fac x2) -7/Factory (discovered 3 exits: [*Fac] / Low x2) History --------- Turn | Location | Event 1 | -11/Scrapyard | Discovered new exit (range 3) 72 | -11/Scrapyard | Entered Materials 314 | -10/Materials | Build established: Mutant 381 | -10/Materials | Discovered new exit (range 14) 588 | -10/Materials | Lost 4 parts (1p1n1u1w) 826 | -10/Materials | Discovered new exit (range 16) 982 | -10/Materials | Discovered new exit (range 17) 1011 | -10/Materials | Core integrity fell below 50% 1233 | -10/Materials | Discovered new exit (range 8) 1305 | -10/Materials | Discovered new exit (range 13) 1386 | -10/Materials | Repaired Com. Wheel 1414 | -10/Materials | Repaired Assault Rifle 1447 | -10/Materials | Repaired Particle Gun 1679 | -10/Materials | Entered Mines 1694 | -10/Mines | Core integrity fell below 20% 1747 | -10/Mines | Build established: Scavenger-Mutant 1754 | -10/Mines | Assembled infested the area 1901 | -10/Mines | Discovered new exit (range 5) 2347 | -10/Mines | Discovered new exit (range 5) 2356 | -10/Mines | Entered Exiles 2400 | -10/Exiles | Met 8R-AWN 2433 | -10/Exiles | Met EX-HEX 2487 | -10/Exiles | Met EX-BIN 2539 | -10/Exiles | Met EX-DEC 2586 | -10/Exiles | Learned location of Zion (-6) 2644 | -10/Exiles | Discovered new exit (range 14) 2665 | -10/Exiles | Entered Mines 2672 | -9/Mines | Met a Derelict bent on vengeance 3057 | -9/Mines | Discovered new exit (range 11) 3238 | -9/Mines | Discovered new exit (range 3) 3261 | -9/Mines | Entered Materials 3261 | -8/Materials | Evolved 4 slots: Utility x4 3967 | -8/Materials | Destroyed 7 combat bots 4255 | -8/Materials | Repaired Seismic Detector 4646 | -8/Materials | Discovered new exit (range 11) 4671 | -8/Materials | Central database locked down 5272 | -8/Materials | Lost 5 parts (1p1n3u) 5532 | -8/Materials | Discovered new exit (range 11) 5626 | -8/Materials | Identified exit to Factory 5678 | -8/Materials | Entered Factory 5678 | -7/Factory | Evolved 2 slots: Utility x2 5750 | -7/Factory | Fabricated System Shield? 5886 | -7/Factory | Identified exit to Lower Caves 5972 | -7/Factory | Discovered new exit (range 15) 6090 | -7/Factory | Fabricated Imp. Trap Extractor? 6135 | -7/Factory | Build established: Wizard-Mutant 6497 | -7/Factory | Self-destructed Last Messages --------------- 06392_ Dropped Plasma Cutter. 06402_ K-01 Serf cleans the Assembly Bed. 06430_ Triggered Ambush Trap. 06430_ B-48 Gladiator emerges from a hatch in the floor. 06468_ Connecting with Recycling Unit... >>Recycling(Report) Matter reserves: 0 Inventory: Imp. Surge Thruster (53%) Plasma Rifle (32%) 06474_ S-27 Virus destroyed. 06482_ Lgt. Ion Engine destroyed. 06482_ Imp. Sensor Array destroyed. 06484_ Hacking Suite destroyed. 06486_ S-27 Virus suffers critical hit (Smash). 06486_ Destroyed VTOL Module. 06486_ S-27 Virus system corrupted by crushing effect. 06487_ S-27 Virus misfires. 06491_ S-27 Virus knocked back. 06493_ Imp. Datajack destroyed. Map ----- +----------------------------------------------------+ | #??????? # ? "Y" | | #??????? # ?? """ | | #?????? # ?? | | #?????? # ?? "" | | # # ##??##/############# "" | | ######+#### # ?? ####### "" | | # ??? ! ##???## "" | | # ?? ##???## | | # ??"" """" ####### | | # """" """" ####### | | # """" """" ### # " | | # """" """" + "" | | # """" """" ### ### | | ######+##### ## """" """" #### #### | | #### ## ## #### ############## | | #### ## ## #### ############## | | #### ## % ## ## ???????????? | | #### + #######+########? ##?????????? | | T### ## ##?????????? | | ### ## ####;##+##### ## ##?????????? | | #### ############ ## ## ######?????? | | #### ############ Y ##+####+########?????# | | #### """ ##????????## " " # !/ #### ??# | | #### """ ##????????##="Y" # = [ !/ #### ??# | | #### """ ##????????##%""" # ! #### ??# | | #### "" ##????????##[s @ s# #### ??# | | #### = "" ###???????######### """"T""""? #### # | | #### ###???????######## """""""???????###/## | | ##########"#######????????###########??????### | | ##########"#######????????###########??????### | | # ! ##???????? ##????????## | | # ! ##????????? ##????????##T | | # ##????????? ##???????#### | | + """" """" ##?????????"""" ########?#### | | # """" """" ##?????????"""" ########?## | | + """" """" ##?????????"""" # ##### | | # """" """" ##???????? """" # ##### | | # ##???????? """" # = ## | | # ##?## ??"" """" + = ## | | # ##?## """" """" # ## | | ##################?## # ## | | ###############?## + ##### ## | | ##??????????????#################+####### ## | | ##??????????????########### # | | ##???????????????????????## """" """ ####### | | ##???????????????????????## """" """ ####### | | ##???????????????????????## """" """ ##?#### | | ##???????????????????????## """" ##?## | | ##???????????????????????## """" ##?## | | ##???????????????????????## """" ##?## | +----------------------------------------------------+ Best States ------------- Heat Dissipation 55 Energy Generation 16 Energy Capacity 290 Matter Stores 300 Matter Capacity 300 Sight Range 18 Robot Scan Range 15 Terrain Scan Range 16 Terrain Scan Density 10 Armor Coverage 225 Evasion (%) 63 Targeting Accuracy 8 Recoil Reduction 2 Offensive Hacking 50 Defensive Hacking 10 Item Schematics ----------------- Huge Storage Unit | -10/Materials | Hacked Assault Rifle | -10/Materials | Hacked Hacking Suite | -8/Materials | Hacked System Shield | -8/Materials | Hacked Imp. Trap Extractor | -7/Factory | Hacked Imp. Signal Interpreter | -7/Factory | Hacked Robot Schematics ------------------ None Fabricated ------------ System Shield | x1 | -7/Factory Imp. Trap Extractor | x2 | -7/Factory Alien Tech Used ----------------- None Achievements -------------- None Challenges ------------ None Game ------ Seed BladeSalvagingRedirector Manual? 0 Play Time 01:09:16 Cumulative 604.9 hours Start 2025.04.08 @ 23:06:37 End 2025.04.10 @ 00:24:52 Sessions 3 Manual Loads 0 Difficulty Rogue Special Mode None Game No. 268 Rogue 124 Adventurer 144 Explorer 0 Win Type - Total 10 Types 4/1/4/1/0/0/0/0/0 Lore% 70 Gallery% 83 Achievement% 70 Wizard Run 0 Options --------- Layout 0 ASCII 0 Keyboard 0 Movement Mouse Keybinds 0 Fullscreen 2 Font 20/SmallcapsGlow Map View 66x50 Zoom Use 0% Tactical HUD 1 Map Filters NONE Filters NONE Steam 1 RUN: 7d6aa27e-2beb-4ac1-8c38-e8489a0558d8